bitfinex-derivatives/quotes_BTCF0:USTF0_20250527
["timestamp","ask_amount","ask_price","bid_price","bid_amount"]
[1748309022984,1.26831179,107670.0,107550.0,0.25736063]
[1748309023186,1.26831179,107670.0,107580.0,0.0464608]
[1748309023187,0.3608,107600.0,107580.0,0.0464608]
[1748309023382,0.36142001,107610.0,107600.0,0.1858186]
[1748309023383,0.00099179,107610.0,107600.0,0.1858186]
[1748309023585,0.09288,107640.0,107600.0,0.6710111]
[1748309023586,0.3608,107640.0,107600.0,0.6710111]
[1748309023783,0.77864,107640.0,107630.0,0.1857668]
[1748309024085,0.6394537,107630.0,107620.0,0.00013879]
[1748309024276,0.1858013,107610.0,107600.0,0.0753]
[1748309024477,0.2322875,107600.0,107570.0,0.1858663]
[1748309024684,0.7216,107580.0,107570.0,0.1858663]
[1748309024879,0.7216,107580.0,107560.0,0.62472]
[1748309025089,0.3608,107570.0,107560.0,0.2788132]
[1748309025279,0.3608,107570.0,107560.0,0.9964972]
[1748309025608,9.058e-05,107570.0,107560.0,0.6217772]
[1748309025979,0.00013944,107580.0,107560.0,1.3284611]
[1748309026182,0.3608,107580.0,107570.0,0.002]
[1748309026583,0.3608,107580.0,107570.0,1.13968]
[1748309027286,0.3608,107580.0,107570.0,0.002]
[1748309027491,0.3618,107580.0,107570.0,0.009]
[1748309027791,0.3618,107580.0,107570.0,0.43358]
[1748309027792,0.001,107580.0,107570.0,0.43358]
[1748309028095,0.3618,107580.0,107570.0,0.9655]
[1748309028392,0.9657334,107580.0,107570.0,0.007]
[1748309028588,0.9657334,107580.0,107570.0,0.00712]
[1748309028785,1.3057334,107580.0,107570.0,0.02164423]
[1748309028986,1.21421688,107580.0,107570.0,0.02152423]
[1748309029179,0.72273688,107580.0,107570.0,0.02164423]
[1748309029387,0.77181688,107580.0,107570.0,0.18064423]
[1748309029592,1.15181688,107580.0,107570.0,0.18064423]
[1748309029893,0.35373688,107580.0,107570.0,0.18194897]
[1748309030090,0.35373688,107580.0,107570.0,0.52490897]
[1748309030291,0.35373688,107580.0,107570.0,1.08577967]
[1748309030496,0.35373688,107580.0,107570.0,1.08565967]
[1748309030793,0.35373688,107580.0,107570.0,1.08586079]
[1748309030995,0.35373688,107580.0,107570.0,0.99290079]
[1748309031183,0.35373688,107580.0,107570.0,1.08594191]
[1748309031987,0.35373688,107580.0,107570.0,1.33582191]
[1748309032192,0.35373688,107580.0,107570.0,1.33594191]
[1748309032396,0.001,107580.0,107570.0,1.33594191]
[1748309032697,0.36093944,107590.0,107580.0,0.1858534]
[1748309032895,0.4608,107600.0,107590.0,0.1858361]
[1748309033107,0.4608,107600.0,107590.0,0.2648361]
[1748309033396,0.3608,107610.0,107600.0,0.1858189]
[1748309033702,0.3608,107610.0,107600.0,0.18744812]
[1748309033990,0.36093944,107620.0,107610.0,0.1858016]
[1748309034192,0.72173944,107620.0,107600.0,0.91994925]
[1748309034397,0.3608,107610.0,107600.0,0.91995745]
[1748309034594,0.36093944,107620.0,107610.0,0.1858016]
[1748309034784,0.36093944,107620.0,107610.0,0.20203617]
[1748309034986,0.36093944,107620.0,107610.0,0.01623457]
[1748309035295,0.36093944,107620.0,107610.0,0.20203617]
[1748309035482,0.36193944,107620.0,107610.0,0.82723617]
[1748309035686,0.36193944,107620.0,107610.0,0.82731729]
[1748309036095,0.36193944,107620.0,107610.0,0.91131729]
[1748309036284,0.36193944,107620.0,107610.0,0.37916128]
[1748309036492,0.36193944,107620.0,107610.0,0.45806128]
[1748309036693,0.36093944,107620.0,107610.0,1.0748224]
[1748309036883,0.36193944,107620.0,107610.0,1.0768224]
[1748309037086,0.00113944,107620.0,107610.0,1.4376224]
[1748309037284,0.3608,107640.0,107620.0,0.1393311]
[1748309037489,0.3608,107650.0,107640.0,0.1857498]
[1748309037689,0.3608,107650.0,107640.0,0.81882661]
[1748309037903,0.3608,107650.0,107640.0,1.07220638]
[1748309038397,0.3608,107670.0,107650.0,0.1392993]
[1748309038700,0.35893997,107670.0,107660.0,0.34484357]
[1748309038894,0.35893997,107670.0,107660.0,0.34729992]
[1748309039298,0.35893997,107670.0,107660.0,0.36182415]
[1748309039594,0.35893997,107670.0,107660.0,0.45470414]
[1748309039799,0.35893997,107670.0,107660.0,0.97842415]
[1748309039994,0.35893997,107670.0,107660.0,1.07430414]
[1748309040801,1.1549605,107670.0,107630.0,0.3608]
[1748309040995,0.63969903,107640.0,107600.0,6.993e-05]
[1748309041198,0.55054059,107620.0,107600.0,0.2470157]
[1748309041389,0.3608,107610.0,107600.0,0.352922]
[1748309041592,0.36104823,107610.0,107600.0,0.6166]
[1748309041793,0.35360116,107610.0,107600.0,0.69272]
[1748309042000,0.35360116,107610.0,107600.0,0.2619389]
[1748309042295,0.35360116,107610.0,107600.0,0.8785789]
[1748309042596,0.35460116,107610.0,107600.0,0.00312]
[1748309042797,0.43700116,107610.0,107600.0,0.00412]
[1748309043099,0.43700116,107610.0,107600.0,0.62076]
[1748309043503,0.43700116,107610.0,107600.0,0.00412]
[1748309043804,0.35460116,107610.0,107600.0,0.00412]
[1748309044004,0.35460116,107610.0,107600.0,0.08012]
[1748309044201,0.54062169,107610.0,107600.0,0.62076]
[1748309044401,0.43760116,107610.0,107600.0,0.004]
[1748309044708,0.89542329,107610.0,107600.0,0.00412]
[1748309045200,1.20542329,107610.0,107600.0,0.004]
[1748309045596,0.1858189,107600.0,107590.0,0.00013944]
[1748309045795,1.1353441,107600.0,107590.0,0.00013944]
[1748309045995,0.36216357,107600.0,107590.0,0.18609564]
[1748309046192,0.36266003,107600.0,107590.0,0.97273564]
[1748309046401,0.36272996,107600.0,107590.0,1.05313564]
[1748309046703,0.36212255,107600.0,107590.0,1.05313564]
[1748309046912,0.53679029,107600.0,107590.0,0.00213944]
[1748309047099,1.22181082,107600.0,107590.0,0.00213944]
[1748309047403,1.30997082,107600.0,107590.0,0.00213944]
[1748309047709,1.63997082,107600.0,107590.0,0.00225944]
[1748309047908,1.63997082,107600.0,107590.0,0.00413944]
[1748309048115,1.63997082,107600.0,107590.0,0.00425944]
[1748309048600,1.63997082,107600.0,107550.0,1.05372]
[1748309048601,0.0464605,107590.0,107550.0,1.05372]
[1748309048904,0.71555704,107560.0,107550.0,0.1859053]
[1748309049099,0.71555704,107560.0,107550.0,0.1860253]
[1748309049295,1.44796203,107560.0,107550.0,0.00012]
[1748309049502,1.44796203,107560.0,107530.0,0.3559348]
[1748309049503,1.66406677,107560.0,107530.0,0.3559348]
[1748309049705,0.7216,107540.0,107530.0,0.40255784]
[1748309050010,0.72352996,107540.0,107530.0,0.48365784]
[1748309050306,0.70835069,107540.0,107530.0,0.43729934]
[1748309050515,0.70835069,107540.0,107530.0,0.43717934]
[1748309050697,0.70835069,107540.0,107530.0,0.00025944]
[1748309050894,0.70835069,107540.0,107530.0,0.18607934]
[1748309051098,0.70835069,107540.0,107530.0,0.35619934]
[1748309051301,0.70835069,107540.0,107530.0,0.43209934]
[1748309051506,0.00113944,107560.0,107530.0,1.75531393]
[1748309051706,0.003,107560.0,107550.0,0.5467053]
[1748309051904,0.003,107560.0,107550.0,0.6226053]
[1748309052098,0.43573758,107580.0,107570.0,0.1858707]
[1748309052301,0.05535351,107590.0,107580.0,0.1858535]
[1748309052511,0.47462344,107610.0,107600.0,0.1858189]
[1748309052712,0.47462344,107610.0,107600.0,0.6168]
[1748309052902,0.47462344,107610.0,107600.0,0.89158609]
[1748309053103,0.3608,107610.0,107600.0,0.89158609]
[1748309053406,0.3608,107640.0,107630.0,0.1857671]
[1748309053610,0.6008,107640.0,107630.0,0.8025671]
[1748309053817,0.24,107640.0,107630.0,1.1633671]
[1748309054017,0.24,107640.0,107630.0,1.2442671]
[1748309054516,0.2106481,107640.0,107630.0,1.3371751]
[1748309054702,0.2106481,107640.0,107630.0,0.7503751]
[1748309054901,0.4442,107670.0,107660.0,0.1857154]
[1748309055100,0.73893997,107670.0,107660.0,1.04623546]
[1748309055406,0.23084453,107700.0,107660.0,1.04623546]
[1748309055407,0.3608,107690.0,107680.0,0.1856809]
[1748309055624,0.3441032,107690.0,107680.0,1.22524093]
[1748309055813,0.01,107690.0,107680.0,1.67890493]
[1748309055999,1e-07,107690.0,107680.0,1.58604093]
[1748309056199,1e-07,107690.0,107680.0,1.06210493]
[1748309056415,0.11702109,107700.0,107690.0,0.1856636]
[1748309056416,0.07205149,107700.0,107690.0,0.1856636]
[1748309056608,0.02324801,107710.0,107700.0,0.1856464]
[1748309056910,0.02324801,107710.0,107700.0,1.1817089]
[1748309057114,1e-08,107710.0,107700.0,1.27530159]
[1748309057302,0.03487201,107740.0,107710.0,0.046406]
[1748309057508,0.5245,107770.0,107760.0,0.185543]
[1748309057710,0.7100258,107770.0,107760.0,0.24186003]
[1748309058007,0.94262,107770.0,107760.0,0.24186003]
[1748309058208,0.47462344,107790.0,107780.0,0.1855086]
[1748309058408,0.73991484,107790.0,107780.0,0.23]
[1748309058604,1.58471084,107790.0,107780.0,0.04397947]
[1748309058800,0.18517122,107760.0,107750.0,0.21]
[1748309059011,1.14009178,107760.0,107750.0,0.26]
[1748309059314,0.08017178,107760.0,107750.0,0.8155602]
[1748309059505,0.08017178,107760.0,107750.0,0.4455602]
[1748309060106,0.08017178,107760.0,107750.0,0.7655602]
[1748309060306,0.44097178,107760.0,107750.0,1.5436602]
[1748309060502,0.44097178,107760.0,107750.0,1.0619602]
[1748309060805,0.94367178,107760.0,107750.0,1.0619602]
[1748309061000,0.94367178,107760.0,107750.0,1.0620802]
[1748309061201,0.52867178,107760.0,107750.0,1.0620802]
[1748309061405,0.00337178,107760.0,107750.0,1.9445802]
[1748309061820,0.00537178,107760.0,107750.0,2.3981842]
[1748309062005,0.00537178,107760.0,107750.0,2.3053802]
[1748309062208,0.00237178,107760.0,107750.0,1.9445802]
[1748309062512,0.00937178,107760.0,107750.0,1.6889802]
[1748309062703,0.00937178,107760.0,107750.0,2.3053802]
[1748309062909,0.009,107760.0,107750.0,2.6481842]
[1748309063119,8e-08,107760.0,107750.0,2.6481842]
[1748309063509,8e-08,107760.0,107750.0,2.7233802]
[1748309064016,8e-08,107760.0,107750.0,2.8161842]
[1748309064212,0.00013944,107770.0,107760.0,0.185543]
[1748309064418,0.4432,107790.0,107780.0,0.1855085]
[1748309064607,0.4432,107790.0,107780.0,1.0317085]
[1748309064807,0.4432,107790.0,107780.0,1.12598028]
[1748309065014,0.5455,107800.0,107790.0,0.1854914]
[1748309065214,0.5455,107800.0,107790.0,0.5193914]
[1748309065422,1.04858,107800.0,107790.0,0.51976318]
[1748309065611,0.546,107800.0,107790.0,0.82976318]
[1748309065814,0.546,107800.0,107790.0,0.60656318]
[1748309066519,0.546,107800.0,107790.0,0.51976318]
[1748309066905,0.546,107800.0,107790.0,0.60656318]
[1748309067218,0.104,107800.0,107790.0,1.33836318]
[1748309067719,0.105,107800.0,107790.0,1.33836318]
[1748309068317,0.101,107800.0,107790.0,1.33736318]
[1748309068626,0.102,107800.0,107790.0,1.33736318]
[1748309069323,0.0103111,107800.0,107790.0,1.33736318]
[1748309069515,0.5431,107840.0,107830.0,0.1854225]
[1748309069823,0.5431,107840.0,107830.0,1.0341425]
[1748309070019,0.5431,107840.0,107830.0,1.13111428]
[1748309070410,0.885836,107840.0,107830.0,0.43579428]
[1748309070637,1.0792413,107840.0,107830.0,0.12137178]
[1748309070926,0.5561,107840.0,107830.0,0.41691428]
[1748309071523,0.97078,107840.0,107830.0,0.41691428]
[1748309071724,0.97078,107840.0,107830.0,0.42691428]
[1748309071924,0.5531,107840.0,107830.0,0.42691428]
[1748309072124,0.9707,107840.0,107830.0,0.42691428]
[1748309072622,0.9707,107840.0,107830.0,0.52311428]
[1748309072811,0.5531,107840.0,107830.0,0.52311428]
[1748309073013,0.9707,107840.0,107830.0,0.52311428]
[1748309073216,0.097,107840.0,107830.0,0.52311428]
[1748309073409,0.01,107840.0,107830.0,0.61141428]
[1748309073625,0.01,107840.0,107830.0,1.54001428]
[1748309074328,0.01,107840.0,107830.0,1.90081428]
[1748309074525,1e-07,107840.0,107830.0,1.57081428]
[1748309074727,1e-07,107840.0,107830.0,1.34221428]
[1748309074930,1e-07,107840.0,107830.0,1.88081428]
[1748309076029,1e-07,107840.0,107830.0,1.33081428]
[1748309076329,1e-07,107840.0,107830.0,0.97001428]
[1748309076633,1e-07,107840.0,107830.0,0.54311438]
[1748309076634,0.3608001,107840.0,107830.0,0.54311438]
[1748309076823,0.8927001,107840.0,107830.0,0.88311438]
[1748309077123,0.3300001,107840.0,107830.0,0.87299438]
[1748309077325,0.3608001,107840.0,107830.0,1.60419438]
[1748309077525,0.8258001,107840.0,107830.0,1.34407438]
[1748309077727,0.8927001,107840.0,107830.0,1.48419438]
[1748309077924,0.4458001,107840.0,107830.0,0.97399438]
[1748309078230,0.8058001,107840.0,107830.0,1.59411438]
[1748309078425,0.7208001,107840.0,107830.0,1.54411438]
[1748309078631,0.7408001,107840.0,107830.0,1.37411438]
[1748309078822,0.4458001,107840.0,107830.0,0.90571438]
[1748309079019,0.5427001,107840.0,107830.0,1.50411438]
[1748309079430,0.3608001,107840.0,107830.0,0.90571438]
[1748309079630,0.3608001,107840.0,107830.0,1.59411438]
[1748309079929,0.7158001,107840.0,107830.0,0.38691438]
[1748309080123,0.8127001,107840.0,107830.0,0.38691438]
[1748309080427,0.5427001,107840.0,107830.0,0.71679438]
[1748309080627,0.4458001,107840.0,107830.0,0.81901438]
[1748309080817,0.4458001,107840.0,107830.0,0.91081438]
[1748309081217,0.3608001,107840.0,107830.0,0.91081438]
[1748309081430,1e-07,107840.0,107830.0,0.91081438]
[1748309081819,1e-07,107840.0,107830.0,1.27161438]
[1748309082927,1e-07,107840.0,107830.0,2.83371038]
[1748309083323,0.3608,107860.0,107830.0,2.64828778]
[1748309083525,0.10929649,107900.0,107870.0,0.0463364]
[1748309083724,0.46929649,107900.0,107890.0,0.9069195]
[1748309084023,0.1924,107900.0,107890.0,1.5469195]
[1748309084222,0.1924,107900.0,107890.0,1.54729128]
[1748309084635,0.1485722,107900.0,107890.0,1.54729128]
[1748309084825,0.1887,107910.0,107900.0,0.1853023]
[1748309085026,0.0933,107930.0,107920.0,0.185268]
[1748309085229,0.5096,107930.0,107920.0,0.80563978]
[1748309085440,0.83366,107930.0,107920.0,0.79643978]
[1748309085638,0.83366,107930.0,107920.0,0.43563978]
[1748309085932,0.1663,107930.0,107920.0,1.09643978]
[1748309086129,0.1663,107930.0,107920.0,0.79643978]
[1748309086333,0.1663,107930.0,107920.0,0.94643978]
[1748309086534,0.0963,107930.0,107920.0,1.20153978]
[1748309086739,0.4541,107950.0,107940.0,0.1852336]
[1748309087029,1.4366765,107950.0,107940.0,0.13]
[1748309087238,1.25146,107950.0,107940.0,0.31560538]
[1748309087429,1.7793165,107950.0,107940.0,0.31572538]
[1748309087631,1.25146,107950.0,107940.0,0.42572538]
[1748309087825,0.13768915,107970.0,107960.0,0.1851993]
[1748309088136,0.7222825,107970.0,107960.0,0.13148825]
[1748309088428,0.6436864,107970.0,107960.0,0.31705933]
[1748309088633,0.87578,107970.0,107960.0,0.31705933]
[1748309088940,0.13768915,107980.0,107960.0,1.21094003]
[1748309089123,1.21405995,107980.0,107960.0,0.52976283]
[1748309089431,0.98258915,107980.0,107970.0,0.18555398]
[1748309089634,0.4841,107980.0,107970.0,0.41555398]
[1748309089937,1e-07,107980.0,107970.0,0.90635398]
[1748309090130,0.279,108000.0,107990.0,0.1851479]
[1748309090323,0.6498,108000.0,107990.0,0.37551968]
[1748309090634,0.9998,108000.0,107990.0,0.37551968]
[1748309090834,1.5275267,108000.0,107990.0,0.12037178]
[1748309091038,2.1254867,108000.0,107990.0,0.30551968]
[1748309091335,2.5426067,108000.0,107990.0,0.12049178]
[1748309091644,2.6814795,108000.0,107990.0,0.1851479]
[1748309091823,1.342396,108000.0,107990.0,0.1851479]
[1748309092024,0.639,108000.0,107990.0,0.2851479]
[1748309092228,1.509516,108000.0,107990.0,0.2851479]
[1748309092526,1.5275268,108000.0,107990.0,0.2851479]
[1748309092723,1.6020508,108000.0,107990.0,0.2851479]
[1748309092932,2.5474868,108000.0,107990.0,0.2862679]
[1748309093143,0.1851479,107990.0,107980.0,0.00013944]
[1748309093328,1.0741479,107990.0,107980.0,0.27530454]
[1748309093529,1.4167519,107990.0,107980.0,0.10013944]
[1748309093832,0.06456442,108060.0,107990.0,0.4628684]
[1748309094036,0.06456442,108060.0,108050.0,1.0943375]
[1748309094338,0.42456442,108060.0,108050.0,1.1966451]
[1748309094527,0.06456442,108060.0,108050.0,1.1766451]
[1748309094934,0.48160442,108060.0,108050.0,1.1866451]
[1748309095129,2e-08,108060.0,108050.0,1.1766451]
[1748309095326,0.00013944,108070.0,108060.0,0.185028]
[1748309095530,0.09433944,108070.0,108060.0,0.675828]
[1748309095941,0.04185584,108070.0,108060.0,0.675828]
[1748309096142,0.42683791,108080.0,108070.0,0.5458109]
[1748309096329,0.37486991,108080.0,108070.0,1.0616109]
[1748309096532,0.105,108100.0,108090.0,0.1849766]
[1748309096730,0.62204,108100.0,108090.0,1.0365766]
[1748309096941,0.73455201,108100.0,108090.0,0.8516]
[1748309097128,0.54751201,108100.0,108090.0,0.4908]
[1748309097328,0.335,108100.0,108090.0,0.67614838]
[1748309097635,1.53339201,108100.0,108090.0,0.49117178]
[1748309097834,0.42751201,108100.0,108090.0,0.49117178]
[1748309098044,0.61247151,108100.0,108090.0,0.49117178]
[1748309098240,0.61247151,108100.0,108090.0,0.67626838]
[1748309098441,0.71177151,108100.0,108090.0,0.67626838]
[1748309098636,1.81765151,108100.0,108090.0,0.67626838]
[1748309099032,2.06765151,108100.0,108090.0,0.49129178]
[1748309099344,0.1849766,108090.0,108080.0,0.54593159]
[1748309099643,0.7184766,108090.0,108080.0,0.54593159]
[1748309099829,0.8109966,108090.0,108080.0,0.54593159]
[1748309100242,0.8109966,108090.0,108080.0,0.54605159]
[1748309100438,0.8119966,108090.0,108080.0,0.54605159]
[1748309100652,0.444,108090.0,108080.0,0.59605159]
[1748309100841,1.1362366,108090.0,108080.0,0.41105879]
[1748309101039,1.2287566,108090.0,108080.0,0.59593249]
[1748309101235,1.2287566,108090.0,108080.0,0.59605249]
[1748309101941,0.5345,108090.0,108080.0,0.59605249]
[1748309102443,0.5345,108090.0,108080.0,0.68385249]
[1748309102639,0.1845,108090.0,108080.0,0.68385249]
[1748309102842,0.60118,108090.0,108080.0,0.69385249]
[1748309103246,0.61118,108090.0,108080.0,0.69385249]
[1748309103646,0.63118,108090.0,108080.0,0.69385249]
[1748309104048,0.91118,108090.0,108080.0,0.69385249]
[1748309104246,0.91118,108090.0,108080.0,0.59605249]
[1748309104437,0.91118,108090.0,108080.0,0.59593249]
[1748309104645,0.91118,108090.0,108080.0,0.59605249]
[1748309104953,0.91118,108090.0,108080.0,0.44744482]
[1748309105148,1.0961566,108090.0,108080.0,0.44744482]
[1748309105351,1.0961566,108090.0,108080.0,0.5959137]
[1748309105648,1.55662033,108090.0,108080.0,0.05012]
[1748309105854,0.1850451,108050.0,108040.0,0.5458572]
[1748309106040,0.6516451,108050.0,108040.0,0.6558572]
[1748309106245,0.6516451,108050.0,108040.0,0.4708]
[1748309106246,1.1926011,108050.0,108040.0,0.4708]
[1748309106449,2.30486483,108050.0,108040.0,0.11]
[1748309106650,0.1850622,108040.0,108030.0,0.6384171]
[1748309106848,0.7134622,108040.0,108030.0,0.7484171]
[1748309107048,0.7276044,108040.0,108030.0,0.11]
[1748309107249,0.5425422,108040.0,108030.0,0.6560003]
[1748309107545,0.7276053,108040.0,108030.0,0.6560003]
[1748309108251,0.82016931,108040.0,108030.0,0.1852003]
[1748309108453,0.1850803,108030.0,108020.0,0.59229749]
[1748309108647,0.1850803,108030.0,108020.0,0.48093879]
[1748309108648,1.1588803,108030.0,108020.0,0.48093879]
[1748309108845,1.2514523,108030.0,108020.0,0.66603619]
[1748309109047,1.24019573,108030.0,108020.0,0.66603619]
[1748309109243,1.33270393,108030.0,108020.0,0.66615619]
[1748309109443,1.14762373,108030.0,108020.0,0.66615619]
[1748309109643,1.24019573,108030.0,108020.0,0.12025879]
[1748309109849,0.649772,108030.0,108020.0,0.66603619]
[1748309110058,0.6058,108030.0,108020.0,0.67603619]
[1748309110358,0.7958,108030.0,108020.0,0.77105619]
[1748309110655,0.888372,108030.0,108020.0,0.13025879]
[1748309110845,0.471772,108030.0,108020.0,0.66603619]
[1748309111047,0.6058,108030.0,108020.0,0.75553619]
[1748309111252,0.9458,108030.0,108020.0,0.75565619]
[1748309111655,1.21219573,108030.0,108020.0,0.66615619]
[1748309111961,0.81962373,108030.0,108020.0,0.66603619]
[1748309112154,1.09962373,108030.0,108020.0,0.66615619]
[1748309112656,0.2744496,108030.0,108020.0,0.66615619]
[1748309112859,1e-07,108030.0,108020.0,1.12965619]
[1748309113056,1e-07,108030.0,108020.0,1.30347992]
[1748309113252,1e-07,108030.0,108020.0,0.90965619]
[1748309113456,0.7666401,108030.0,108020.0,0.48093879]
[1748309113761,0.1500001,108030.0,108020.0,0.66615619]
[1748309114065,0.01403645,108040.0,108020.0,0.66615619]
[1748309114066,0.09363879,108050.0,108040.0,0.1850631]
[1748309114362,0.89023879,108050.0,108040.0,1.0366631]
[1748309114550,0.47363879,108050.0,108040.0,0.4037631]
[1748309114751,0.89023879,108050.0,108040.0,0.7645631]
[1748309115260,0.84423879,108050.0,108040.0,0.7645631]
[1748309115764,0.01822384,108050.0,108040.0,0.7645631]
[1748309116061,0.01822384,108050.0,108040.0,0.8547631]
[1748309116266,0.21252384,108050.0,108040.0,0.8547631]
[1748309116664,0.56252384,108050.0,108040.0,0.8547631]
[1748309117668,0.97912384,108050.0,108040.0,0.8548831]
[1748309117969,1.33799367,108050.0,108040.0,0.12012]
[1748309118267,2.04134967,108050.0,108040.0,0.12012]
[1748309118769,2.14124967,108050.0,108040.0,0.00012]
[1748309120266,0.1850803,108030.0,108020.0,0.00013879]
[1748309120473,0.9816803,108030.0,108020.0,0.30523619]
[1748309120662,0.7476803,108030.0,108020.0,0.30523619]
[1748309120859,0.9792,108030.0,108020.0,0.75453619]
[1748309121065,0.9742803,108030.0,108020.0,0.84947975]
[1748309121271,0.9742803,108030.0,108020.0,0.85034444]
[1748309121464,0.9752803,108030.0,108020.0,0.85034444]
[1748309122266,0.9752803,108030.0,108020.0,0.75614444]
[1748309122664,1.4286523,108030.0,108020.0,0.12174704]
[1748309122872,1.4286523,108030.0,108020.0,0.12162704]
[1748309122873,1.0678523,108030.0,108020.0,0.12162704]
[1748309123066,1.0678523,108030.0,108020.0,0.00162704]
[1748309123067,1.60247603,108030.0,108020.0,0.00162704]
[1748309123371,2.71727573,108030.0,107980.0,0.00809659]
[1748309123670,0.2314072,108010.0,108000.0,0.1851317]
[1748309123972,0.78664,108010.0,108000.0,0.3708]
[1748309124265,1.0707546,108010.0,108000.0,0.6585517]
[1748309124468,1.1685546,108010.0,108000.0,0.7604517]
[1748309124971,1.1685546,108010.0,108000.0,0.6585517]
[1748309125163,1.1685546,108010.0,108000.0,0.2977517]
[1748309125359,1.2611426,108010.0,108000.0,0.01]
[1748309125672,0.1851317,108000.0,107990.0,0.18528769]
[1748309125971,0.7519317,108000.0,107990.0,0.19528769]
[1748309126166,1.1184147,108000.0,107990.0,0.00025879]
[1748309126763,1.2053277,108000.0,107990.0,9e-08]
[1748309127061,0.185166,107980.0,107970.0,0.8344676]
[1748309127262,0.961846,107980.0,107970.0,0.9044676]
[1748309127568,1.167646,107980.0,107970.0,0.07]
[1748309127773,1.167646,107980.0,107960.0,0.00013879]
[1748309127774,0.1851832,107970.0,107960.0,0.00013879]
[1748309128070,0.7409832,107970.0,107960.0,0.36093879]
[1748309128572,0.7409832,107970.0,107960.0,0.00013879]
[1748309128978,0.8336072,107970.0,107960.0,0.00025879]
[1748309129174,0.8336072,107970.0,107960.0,0.18533909]
[1748309129371,0.7409832,107970.0,107960.0,0.54625909]
[1748309129575,0.7409832,107970.0,107960.0,0.66025909]
[1748309129766,1.8247032,107970.0,107960.0,0.66025909]
[1748309130075,1.8038632,107970.0,107960.0,0.66025909]
[1748309130375,1.81759019,107970.0,107960.0,0.66125909]
[1748309130571,0.75471019,107970.0,107960.0,0.66125909]
[1748309130875,0.36445641,107970.0,107960.0,0.66125909]
[1748309131075,0.43121641,107970.0,107960.0,0.97295909]
[1748309131773,0.53121641,107970.0,107960.0,0.87295909]
[1748309131973,0.61639961,107970.0,107960.0,0.68775879]
[1748309132170,1.30719961,107970.0,107960.0,0.12125879]
[1748309132370,1.50692361,107970.0,107960.0,0.12113879]
[1748309132577,1.60902361,107970.0,107960.0,0.30645909]
[1748309132879,1.24822361,107970.0,107960.0,0.18645909]
[1748309133180,1.60902361,107970.0,107960.0,0.00125879]
[1748309133473,1.60902361,107970.0,107960.0,0.00113879]
[1748309133666,1.51639961,107970.0,107960.0,0.00125879]
[1748309133863,1.60902361,107970.0,107960.0,0.00113879]
[1748309134068,1.60902361,107970.0,107960.0,0.00125879]
[1748309135071,2.50538361,107970.0,107960.0,0.00125879]
[1748309135374,2.50538361,107970.0,107920.0,0.004106]
[1748309135375,0.1852518,107930.0,107920.0,0.3350768]
[1748309135576,0.8720918,107930.0,107920.0,0.6219932]
[1748309135761,1.0783918,107930.0,107920.0,0.6219932]
[1748309136167,0.4552518,107930.0,107920.0,0.6219932]
[1748309136369,0.8720918,107930.0,107920.0,0.6219932]
[1748309136572,0.8720918,107930.0,107920.0,0.5293616]
[1748309136776,0.9745918,107930.0,107920.0,0.5293616]
[1748309136975,0.9745918,107930.0,107920.0,0.8901616]
[1748309137175,0.9745918,107930.0,107920.0,0.5252556]
[1748309137770,1.3353918,107930.0,107920.0,0.34]
[1748309137980,1.3353918,107930.0,107920.0,1e-07]
[1748309138188,1.5318478,107930.0,107920.0,1e-07]
[1748309138478,1.53750338,107930.0,107920.0,0.0001201]
[1748309138679,1.71132711,107930.0,107920.0,0.0001201]
[1748309139073,1.29448711,107930.0,107920.0,0.0001201]
[1748309139381,2.35772711,107930.0,107920.0,0.0001201]
[1748309140669,1.29448711,107930.0,107920.0,0.0001201]
[1748309140879,2.35780711,107930.0,107920.0,0.0001201]
[1748309141181,2.35788711,107930.0,107920.0,0.0001201]
[1748309141778,2.33660711,107930.0,107920.0,0.0001201]
[1748309143178,1.0223518,107930.0,107920.0,0.0001201]
[1748309143380,1.8244718,107930.0,107920.0,0.2753885]
[1748309143675,1.1323518,107930.0,107920.0,0.2753885]
[1748309143885,0.5015518,107930.0,107920.0,0.8394885]
[1748309144183,0.00013879,107940.0,107930.0,0.1852513]
[1748309144374,0.41713879,107940.0,107930.0,0.8762513]
[1748309144575,0.60237289,107940.0,107930.0,0.8762513]
[1748309145581,0.60337289,107940.0,107930.0,0.8762513]
[1748309145876,0.60337289,107940.0,107930.0,0.8662513]
[1748309146075,0.00013879,107940.0,107930.0,0.8662513]
[1748309146294,0.00013879,107940.0,107930.0,1.79531503]
[1748309146477,0.41913879,107940.0,107930.0,1.79531503]
[1748309146670,0.41913879,107940.0,107930.0,1.6214913]
[1748309147067,0.41713879,107940.0,107930.0,1.6214913]
[1748309147280,0.41713879,107940.0,107930.0,1.4914913]
[1748309147477,0.60237419,107940.0,107930.0,0.691]
[1748309147682,0.60237419,107940.0,107930.0,0.5054526]
[1748309147683,0.78237419,107940.0,107930.0,0.5054526]
[1748309147879,0.18013879,107940.0,107930.0,0.8662526]
[1748309148078,0.59713879,107940.0,107930.0,0.8663726]
[1748309148478,0.92237419,107940.0,107930.0,0.8663726]
[1748309148683,0.68237419,107940.0,107930.0,0.8673726]
[1748309148985,0.68237419,107940.0,107930.0,0.8693726]
[1748309149178,0.94237419,107940.0,107930.0,0.8693726]
[1748309149378,0.71237419,107940.0,107930.0,0.8692526]
[1748309149585,0.71237419,107940.0,107930.0,0.8673726]
[1748309149979,0.71237419,107940.0,107930.0,0.5055726]
[1748309150180,0.71337419,107940.0,107930.0,0.5055726]
[1748309150581,0.71337419,107940.0,107930.0,0.8663726]
[1748309150879,0.11113879,107940.0,107930.0,0.8663726]
[1748309151080,0.41813879,107940.0,107930.0,0.77112]
[1748309151279,0.60337419,107940.0,107930.0,0.9563725]
[1748309152086,0.61337419,107940.0,107930.0,0.8663725]
[1748309152986,0.61337419,107940.0,107930.0,0.8704785]
[1748309153191,0.61237419,107940.0,107930.0,0.8714785]
[1748309153388,0.61237419,107940.0,107930.0,0.8734785]
[1748309153788,0.24013879,107940.0,107930.0,0.8734785]
[1748309153984,0.84233419,107940.0,107930.0,0.8734785]
[1748309154487,0.41709879,107940.0,107930.0,1.0434785]
[1748309154681,0.41709879,107940.0,107930.0,0.9734785]
[1748309155381,0.00013879,107940.0,107930.0,0.9734785]
[1748309155891,0.41709879,107940.0,107930.0,0.9734785]
[1748309156181,0.74709879,107940.0,107930.0,1.16088308]
[1748309156388,0.74709879,107940.0,107930.0,0.98705935]
[1748309157587,1e-08,107940.0,107930.0,1.44970735]
[1748309157783,1e-08,107940.0,107930.0,1.62353108]
[1748309158088,1e-08,107940.0,107930.0,1.87353108]
[1748309158880,0.00072942,107970.0,107960.0,0.185201]
[1748309159077,0.47768942,107970.0,107960.0,1.517581]
[1748309159293,0.47768942,107970.0,107960.0,1.638081]
[1748309159885,0.06072942,107970.0,107960.0,1.75817544]